fUSD/lending_fUSD_20250620
["ID","MTS","AMOUNT","RATE_DAILY","PERIOD"]
[366662048,1750392654987,-500.0,0.00027159,2]
[366662049,1750392654996,-150.0,0.00027159,2]
[366662050,1750392655006,-799.58,0.00027159,4]
[366662051,1750392655017,-500.0,0.00027159,2]
[366662052,1750392655027,-500.0,0.00027159,2]
[366662053,1750392655037,-500.0,0.00027159,2]
[366662054,1750392655047,-1061.93,0.00027159,4]
[366662055,1750392655058,-500.0,0.00027159,2]
[366662056,1750392655068,-500.0,0.00027159,2]
[366662057,1750392655078,-500.0,0.00027159,2]
[366662058,1750392655089,-536.41,0.00027159,4]
[366662059,1750392655098,-778.73,0.00027159,4]
[366662060,1750392655109,-150.0,0.00027159,2]
[366662061,1750392655118,-273.05352313,0.00027159,2]
[366662062,1750392655128,-888.95,0.00027159,4]
[366662063,1750392655138,-1396.8,0.00027159,4]
[366662064,1750392655147,-664.53,0.00027159,4]
[366662065,1750392655157,-591.98,0.00027159,4]
[366662066,1750392655167,-490.0,0.00027159,4]
[366662067,1750392655178,-490.0,0.00027159,4]
[366662068,1750392655188,-490.0,0.00027159,4]
[366662069,1750392655199,-1487.46,0.00027159,4]
[366662070,1750392655208,-693.41,0.00027159,4]
[366662071,1750392655218,-1303.69,0.00027159,4]
[366662072,1750392655228,-490.0,0.00027159,4]
[366662073,1750392655238,-1242.9,0.00027159,4]
[366662074,1750392655248,-490.0,0.00027159,4]
[366662075,1750392655259,-1159.37,0.00027159,4]
[366662076,1750392655269,-1753.82,0.00027159,4]
[366662077,1750392655278,-994.02,0.00027159,4]
[366662078,1750392655288,-586.3,0.00027159,4]
[366662079,1750392655298,-490.0,0.00027159,4]
[366662080,1750392655309,-839.37,0.00027159,4]
[366662081,1750392655321,-490.0,0.00027159,4]
[366662082,1750392655330,-490.0,0.00027159,4]
[366662083,1750392655340,-490.0,0.00027159,4]
[366662084,1750392655350,-902.12,0.00027159,4]
[366662085,1750392655361,-1192.97,0.00027159,4]
[366662086,1750392655371,-1601.58,0.00027159,4]
[366662087,1750392655382,-1159.389115,0.00027159,7]
[366662088,1750392655392,-1159.389115,0.00027159,7]
[366662089,1750392655401,-595.27,0.00027159,4]
[366662090,1750392655410,-844.86,0.00027159,4]
[366662091,1750392655420,-562.66,0.00027159,4]
[366662092,1750392655430,-748.85,0.00027159,4]
[366662093,1750392655441,-490.0,0.00027159,4]
[366662094,1750392655451,-151.134797,0.00027159,7]
[366662095,1750392655462,-938.87,0.00027159,4]
[366662096,1750392655472,-490.0,0.00027159,4]
[366662097,1750392655482,-226.355101,0.00027159,7]
[366662098,1750392655493,-226.355101,0.00027159,7]
[366662099,1750392655503,-490.0,0.00027159,4]
[366662100,1750392655513,-490.0,0.00027159,4]
[366662101,1750392655523,-1230.37,0.00027159,4]
[366662102,1750392655534,-490.0,0.00027159,4]
[366662103,1750392655544,-183.896118,0.00027159,7]
[366662104,1750392655554,-529.47,0.00027159,4]
[366662105,1750392655564,-663.01,0.00027159,4]
[366662106,1750392655575,-183.896118,0.00027159,7]
[366662107,1750392655585,-2205.8,0.00027159,4]
[366662108,1750392655596,-579.38,0.00027159,4]
[366662109,1750392655605,-1798.16,0.00027159,4]
[366662110,1750392655619,-490.0,0.00027159,4]
[366662111,1750392655630,-2635.46,0.00027159,4]
[366662112,1750392655640,-490.0,0.00027159,4]
[366662113,1750392655651,-1140.99,0.00027159,4]
[366662114,1750392655662,-659.09,0.00027159,4]
[366662115,1750392655672,-262.658617,0.00027159,7]
[366662116,1750392655682,-1747.17,0.00027159,4]
[366662117,1750392655692,-262.658617,0.00027159,7]
[366662118,1750392655702,-611.48,0.00027159,4]
[366662119,1750392655712,-1365.31,0.00027159,4]
[366662120,1750392655723,-1025.92,0.00027159,4]
[366662121,1750392655734,-1653.11,0.00027159,4]
[366662122,1750392655744,-1657.1,0.00027159,4]
[366662123,1750392655755,-490.0,0.00027159,4]
[366662124,1750392655767,-490.0,0.00027159,4]
[366662125,1750392655776,-490.0,0.00027159,4]
[366662126,1750392655787,-151.0,0.00027159,7]
[366662127,1750392655797,-490.0,0.00027159,4]
[366662128,1750392655807,-151.0,0.00027159,7]
[366662129,1750392655817,-490.0,0.00027159,4]
[366662130,1750392655827,-996.07,0.00027159,4]
[366662131,1750392655836,-151.0,0.00027159,7]
[366662132,1750392655846,-500.0,0.00027159,4]
[366662133,1750392655856,-490.0,0.00027159,4]
[366662134,1750392655866,-490.0,0.00027159,4]
[366662135,1750392655876,-759.44,0.00027159,4]
[366662136,1750392655886,-151.0,0.00027159,7]
[366662137,1750392655896,-1902.04,0.00027159,4]
[366662138,1750392655906,-490.0,0.00027159,4]
[366662139,1750392655916,-1104.4,0.00027159,4]
[366662140,1750392655926,-490.0,0.00027159,4]
[366662141,1750392655936,-490.0,0.00027159,4]
[366662142,1750392655946,-490.0,0.00027159,4]
[366662143,1750392655956,-1219.18,0.00027159,4]
[366662144,1750392655966,-1344.02,0.00027159,4]
[366662145,1750392655976,-490.0,0.00027159,4]
[366662146,1750392655986,-500.0,0.00027159,2]
[366662147,1750392655997,-151.0,0.00027159,7]
[366662148,1750392656007,-811.04,0.00027159,4]
[366662149,1750392656016,-490.0,0.00027159,4]
[366662150,1750392656026,-604.506078,0.00027159,7]
[366662151,1750392656036,-834.11677829,0.00027159,7]
[366662152,1750392656046,-604.506078,0.00027159,7]
[366662153,1750392656056,-151.0,0.00027159,7]
[366662154,1750392656065,-490.0,0.00027159,4]
[366662155,1750392656076,-490.0,0.00027159,4]
[366662156,1750392656086,-151.0,0.00027159,7]
[366662157,1750392656096,-490.0,0.00027159,4]
[366662158,1750392656106,-490.0,0.00027159,4]
[366662159,1750392656116,-700.35,0.00027159,4]
[366662160,1750392656125,-151.0,0.00027159,7]
[366662161,1750392656135,-490.0,0.00027159,4]
[366662162,1750392656145,-674.99,0.00027159,4]
[366662163,1750392656155,-720.548446,0.00027159,7]
[366662164,1750392656165,-795.43,0.00027159,4]
[366662165,1750392656175,-720.548446,0.00027159,7]
[366662166,1750392656186,-490.0,0.00027159,4]
[366662167,1750392656195,-735.72,0.00027159,4]
[366662168,1750392656206,-490.0,0.00027159,4]
[366662169,1750392656217,-490.0,0.00027159,4]
[366662170,1750392656228,-490.0,0.00027159,4]
[366662171,1750392656238,-490.0,0.00027159,4]
[366662172,1750392656248,-490.0,0.00027159,4]
[366662173,1750392656258,-1395.981752,0.00027159,7]
[366662174,1750392656269,-490.0,0.00027159,4]
[366662175,1750392656279,-1395.981752,0.00027159,7]
[366662176,1750392656290,-490.0,0.00027159,4]
[366662177,1750392656300,-723.56,0.00027159,4]
[366662178,1750392656310,-3127.007266,0.00027159,7]
[366662179,1750392656319,-3127.007266,0.00027159,7]
[366662180,1750392656329,-490.0,0.00027159,4]
[366662181,1750392656339,-490.0,0.00027159,4]
[366662182,1750392656348,-611.17,0.00027159,4]
[366662183,1750392656358,-150.0,0.00027159,2]
[366662184,1750392656368,-500.0,0.00027159,2]
[366662185,1750392656378,-500.0,0.00027159,2]
[366662186,1750392656388,-1049.1,0.00027159,4]
[366662187,1750392656398,-500.0,0.00027159,2]
[366662188,1750392656408,-2632.0,0.00027159,2]
[366662189,1750392656417,-150.82942947,0.00027159,2]
[366662190,1750392656428,-490.0,0.00027159,4]
[366662191,1750392656438,-1644.13,0.00027159,4]
[366662192,1750392656447,-1127.16,0.00027159,4]
[366662193,1750392656457,-490.0,0.00027159,4]
[366662194,1750392656467,-150.0,0.00027159,2]
[366662195,1750392656478,-1087.34,0.00027159,4]
[366662196,1750392656487,-150.0,0.00027159,2]
[366662197,1750392656497,-500.0,0.00027159,2]
[366662198,1750392656507,-218.23619018,0.00027159,2]
[366662199,1750392656517,-150.0,0.00027159,2]
[366662200,1750392656527,-500.0,0.00027159,2]
[366662201,1750392656537,-490.0,0.00027159,4]
[366662202,1750392656547,-150.35273726,0.00027159,2]
[366662203,1750392656558,-500.0,0.00027159,2]
[366662204,1750392656568,-150.0,0.00027159,2]
[366662205,1750392656578,-150.0,0.00027159,2]
[366662206,1750392656588,-1103.45,0.00027159,4]
[366662207,1750392656598,-1103.52,0.00027159,4]
[366662208,1750392656610,-502.29,0.00027159,4]
[366662209,1750392656620,-3122.501418,0.00027159,7]
[366662210,1750392656630,-7206.413036,0.00027159,7]
[366662211,1750392656640,-3122.501418,0.00027159,7]
[366662212,1750392656651,-959.767891,0.0002716,7]
[366662213,1750392656661,-959.767891,0.0002716,7]
[366662214,1750392656671,-1873.75,0.00027165,4]
[366662215,1750392656681,-4100.04,0.00027165,4]
[366662216,1750392656691,-151.0,0.00027166,7]
[366662217,1750392656701,-490.0,0.00027166,4]
[366662218,1750392656711,-502.461382,0.00027166,7]
[366662219,1750392656721,-490.0,0.00027166,4]
[366662220,1750392656730,-502.461382,0.00027166,7]
[366662221,1750392656740,-490.0,0.00027166,4]
[366662222,1750392656750,-490.0,0.00027166,4]
[366662223,1750392656761,-490.0,0.00027166,4]
[366662224,1750392656770,-490.0,0.00027166,4]
[366662225,1750392656782,-490.0,0.00027166,4]
[366662226,1750392656791,-490.0,0.00027166,4]
[366662227,1750392656801,-490.0,0.00027166,4]
[366662228,1750392656811,-730.634615,0.00027166,7]
[366662229,1750392656821,-490.0,0.00027166,4]
[366662230,1750392656830,-730.634615,0.00027166,7]
[366662231,1750392656840,-260.05966229,0.00027166,4]
[366662232,1750392656850,-490.0,0.00027166,4]
[366662233,1750392656860,-490.0,0.00027166,4]
[366662234,1750392656870,-705.96,0.00027166,4]
[366662235,1750392656879,-633.11,0.00027166,4]
[366662236,1750392656889,-490.0,0.00027166,4]
[366662237,1750392656899,-490.0,0.00027166,4]
[366662238,1750392656909,-490.0,0.00027166,4]
[366662239,1750392656918,-490.0,0.00027166,4]
[366662240,1750392656928,-490.0,0.00027166,4]
[366662241,1750392656937,-490.0,0.00027166,4]
[366662242,1750392656947,-490.0,0.00027166,4]
[366662243,1750392656956,-490.0,0.00027166,4]
[366662244,1750392656966,-490.0,0.00027166,4]
[366662245,1750392656976,-690.83,0.00027166,4]
[366662246,1750392656985,-490.0,0.00027166,4]
[366662247,1750392656995,-490.0,0.00027166,4]
[366662248,1750392657005,-490.0,0.00027166,4]
[366662249,1750392657014,-490.0,0.00027166,4]
[366662250,1750392657024,-490.0,0.00027166,4]
[366662251,1750392657034,-367.90617217,0.00027166,4]
[366662252,1750393117083,164.25,0.00013699,2]
[366662356,1750393832196,-1394.46404843,0.000239,10]
[366662357,1750393832206,-202.0,0.00023967,2]
[366662358,1750393832217,-1200.0,0.00023999,2]
[366662359,1750393832227,-19623.70814163,0.00024,3]
[366662360,1750393832237,-5000.0054013,0.00024,5]
[366662361,1750393832247,-834.11677829,0.00024,3]
[366662362,1750393832257,-1394.46404841,0.0002421,10]
[366662363,1750393832266,-150.0,0.0002446,4]
[366662364,1750393832276,-150.0,0.0002446,4]
[366662365,1750393832286,-150.0,0.0002446,4]
[366662366,1750393832296,-1394.46404841,0.00024521,11]
[366662367,1750393832306,-1394.46404841,0.00024831,12]
[366662368,1750393832316,-26340.4578656,0.00024967,2]
[366662369,1750393832326,-1394.46404841,0.00025141,12]
[366662370,1750393832338,-1394.46404841,0.00025452,13]
[366662371,1750393832349,-202.0,0.00025534,4]
[366662372,1750393832359,-1394.46404841,0.00025762,13]
[366662373,1750393832371,-1000.0,0.00025885,2]
[366662374,1750393832382,-200.0,0.00025893,7]
[366662375,1750393832393,-313.25,0.00025927,120]
[366662376,1750393832403,-207.4,0.0002595,2]
[366662377,1750393832415,-150.0,0.00026007,2]
[366662378,1750393832426,-203.31320609,0.0002602,2]
[366662379,1750393832438,-200.0,0.0002602,2]
[366662380,1750393832449,-1394.46404841,0.00026072,14]
[366662381,1750393832460,-1680.0,0.00026145,2]
[366662382,1750393832471,-928.96,0.00026241,2]
[366662383,1750393832483,-1595.62,0.00026241,2]
[366662384,1750393832492,-150.0,0.00026296,2]
[366662385,1750393832503,-1394.46404841,0.00026383,15]
[366662386,1750393832513,-152.747179,0.00026635,8]
[366662387,1750393832524,-1394.46404841,0.00026693,15]
[366662388,1750393832533,-250.0,0.00026702,2]
[366662389,1750393832544,-167.36,0.00026818,2]
[366662390,1750393832554,-151.97,0.0002687,2]
[366662391,1750393832565,-167.19606068,0.00026888,2]
[366662392,1750393832575,-179.94064548,0.00026888,2]
[366662393,1750393832584,-272.3229,0.00026889,2]
[366662394,1750393832594,-247.26104163,0.00026889,2]
[366662395,1750393832604,-277.71743426,0.00026898,2]
[366662396,1750393832614,-154.03888196,0.00026899,2]
[366662397,1750393832624,-8973.6882,0.000269,2]
[366662398,1750393832634,-927.1331,0.000269,2]
[366662399,1750393832645,-608.63684678,0.000269,2]
[366662400,1750393832655,-803.48896335,0.00026911,2]
[366662401,1750393832664,-803.48896335,0.00026916,2]
[366662403,1750393832674,-803.48896335,0.00026922,2]
[366662405,1750393832683,-803.48896335,0.00026927,2]
[366662407,1750393832693,-150.0,0.00026931,2]
[366662409,1750393832702,-803.48896335,0.00026933,2]
[366662411,1750393832712,-803.48896335,0.00026939,2]
[366662413,1750393832722,-803.48896335,0.00026944,2]
[366662414,1750393832732,-803.48896335,0.0002695,2]
[366662415,1750393832742,-179.94064548,0.00026952,2]
[366662416,1750393832752,-490.0,0.00026956,2]
[366662417,1750393832763,-490.0,0.00026956,2]
[366662418,1750393832773,-490.0,0.00026956,2]
[366662419,1750393832784,-490.0,0.00026956,2]
[366662421,1750393832794,-490.0,0.00026956,2]
[366662423,1750393832805,-803.48896335,0.00026956,2]
[366662425,1750393832815,-803.48896335,0.00026961,2]
[366662427,1750393832825,-803.48896335,0.00026967,2]
[366662429,1750393832835,-151.0,0.00026972,2]
[366662432,1750393832845,-151.0,0.00026972,2]
[366662435,1750393832855,-151.0,0.00026972,2]
[366662439,1750393832869,-244.61385719,0.00026972,2]
[366662442,1750393832879,-803.48896335,0.00026972,2]
[366662444,1750393832889,-501.15678859,0.00026973,2]
[366662446,1750393832899,-11088.0805209,0.00026978,2]
[366662448,1750393832908,-531.13,0.00026978,2]
[366662451,1750393832918,-620.92041555,0.00026978,2]
[366662453,1750393832927,-803.48896335,0.00026978,2]
[366662456,1750393832937,-22176.1610417,0.00026978,2]
[366662459,1750393832947,-11088.0805209,0.00026979,2]
[366662464,1750393832957,-803.48896335,0.00026984,2]
[366662467,1750393832967,-490.0,0.00026987,4]
[366662470,1750393832978,-490.0,0.00026987,4]
[366662473,1750393832988,-490.0,0.00026987,4]
[366662476,1750393832998,-490.0,0.00026987,4]
[366662479,1750393833008,-490.0,0.00026987,4]
[366662481,1750393833017,-490.0,0.00026987,4]
[366662483,1750393833027,-490.0,0.00026987,4]
[366662485,1750393833037,-494.69,0.00026987,4]
[366662487,1750393833046,-674.73,0.00026987,4]
[366662489,1750393833056,-490.0,0.00026987,4]
[366662491,1750393833066,-1037.7,0.00026987,4]
[366662493,1750393833076,-490.0,0.00026987,4]
[366662495,1750393833086,-490.0,0.00026987,4]
[366662496,1750393833097,-490.0,0.00026987,4]
[366662497,1750393833107,-490.0,0.00026987,4]
[366662498,1750393833117,-490.0,0.00026987,4]
[366662499,1750393833127,-490.0,0.00026987,4]
[366662500,1750393833137,-155.0,0.00026987,2]
[366662501,1750393833147,-669.25,0.00026987,4]
[366662502,1750393833157,-490.0,0.00026987,4]
[366662503,1750393833167,-934.47,0.00026987,4]
[366662504,1750393833176,-1831.47,0.00026987,4]
[366662505,1750393833187,-552.63,0.00026987,4]
[366662506,1750393833196,-490.0,0.00026987,4]
[366662507,1750393833206,-829.39,0.00026987,4]
[366662508,1750393833216,-490.0,0.00026987,4]
[366662509,1750393833226,-664.25,0.00026987,4]
[366662510,1750393833236,-490.0,0.00026987,4]
[366662512,1750393833246,-490.0,0.00026987,4]
[366662514,1750393833256,-613.36,0.00026987,4]
[366662516,1750393833266,-490.0,0.00026987,4]
[366662518,1750393833276,-774.15,0.00026987,4]
[366662520,1750393833286,-1483.39,0.00026987,4]
[366662522,1750393833295,-607.37,0.00026987,4]
[366662524,1750393833305,-536.36076678,0.00026987,4]
[366662526,1750393833314,-1664.88,0.00026987,4]
[366662528,1750393833324,-500.0,0.00026987,4]
[366662530,1750393833333,-490.0,0.00026987,4]
[366662532,1750393833344,-490.0,0.00026987,4]
[366662534,1750393833354,-512.91,0.00026987,4]
[366662537,1750393833364,-916.3,0.00026987,4]
[366662539,1750393833374,-2755.24,0.00026987,4]
[366662541,1750393833384,-490.0,0.00026987,4]
[366662543,1750393833395,-490.0,0.00026987,4]
[366662545,1750393833404,-861.11,0.00026987,4]
[366662547,1750393833414,-490.0,0.00026987,4]
[366662549,1750393833424,-490.0,0.00026987,4]
[366662551,1750393833434,-490.0,0.00026987,4]
[366662553,1750393833443,-500.0,0.00026987,4]
[366662555,1750393833453,-2176.65,0.00026987,4]
[366662557,1750393833466,-490.0,0.00026987,4]
[366662559,1750393833475,-490.0,0.00026987,4]
[366662561,1750393833485,-490.0,0.00026987,4]
[366662563,1750393833495,-773.85,0.00026987,4]
[366662565,1750393833504,-490.0,0.00026987,4]
[366662567,1750393833514,-1509.75,0.00026987,4]
[366662569,1750393833524,-490.0,0.00026987,4]
[366662571,1750393833535,-490.0,0.00026987,4]
[366662573,1750393833545,-490.0,0.00026987,4]
[366662575,1750393833555,-3287.79,0.00026987,4]
[366662577,1750393833565,-490.0,0.00026987,4]
[366662579,1750393833575,-490.0,0.00026987,4]
[366662581,1750393833586,-490.0,0.00026987,4]
[366662583,1750393833596,-1451.74,0.00026987,4]
[366662585,1750393833606,-490.0,0.00026987,4]
[366662587,1750393833616,-490.0,0.00026987,4]
[366662589,1750393833626,-490.0,0.00026987,4]
[366662591,1750393833636,-490.0,0.00026987,4]
[366662593,1750393833647,-490.0,0.00026987,4]
[366662595,1750393833657,-490.0,0.00026987,4]
[366662597,1750393833668,-933.17,0.00026987,4]
[366662599,1750393833677,-490.0,0.00026987,4]
[366662601,1750393833688,-490.0,0.00026987,2]
[366662603,1750393833698,-289.56077985,0.00026987,4]
[366662604,1750393833708,-490.0,0.00026987,4]
[366662606,1750393833718,-490.0,0.00026987,4]
[366662608,1750393833729,-984.8,0.00026987,4]
[366662610,1750393833739,-136.97674536,0.00026987,4]
[366662612,1750393833754,-1008.23325464,0.00026987,4]
[366662614,1750393833764,-490.0,0.00026987,4]
[366662616,1750393833774,-490.0,0.00026987,4]
[366662618,1750393833787,-198.1227921,0.00026987,2]
[366662620,1750393833798,-500.0,0.00026987,2]
[366662622,1750393833808,-500.0,0.00026987,2]
[366662624,1750393833818,-480.67093417,0.00026987,2]
[366662626,1750393833828,-500.0,0.00026987,2]
[366662628,1750393833838,-431.51924781,0.00026987,2]
[366662630,1750393833849,-500.0,0.00026987,2]
[366662632,1750393833859,-500.0,0.00026987,2]
[366662634,1750393833869,-500.0,0.00026987,2]
[366662636,1750393833879,-500.0,0.00026987,2]
[366662638,1750393833890,-500.0,0.00026987,2]
[366662640,1750393833900,-558.92623435,0.00026987,2]
[366662642,1750393833911,-500.0,0.00026987,2]
[366662644,1750393833922,-500.0,0.00026987,2]
[366662645,1750393833932,-500.0,0.00026987,2]
[366662647,1750393833943,-362.26261757,0.00026987,2]
[366662650,1750393833954,-500.0,0.00026987,2]
[366662651,1750393833964,-500.0,0.00026987,2]
[366662653,1750393833975,-434.52140839,0.00026987,2]
[366662655,1750393833986,-500.0,0.00026987,2]
[366662657,1750393833996,-500.0,0.00026987,2]
[366662659,1750393834006,-500.0,0.00026987,2]
[366662661,1750393834016,-500.0,0.00026987,2]
[366662663,1750393834025,-500.0,0.00026987,2]
[366662665,1750393834036,-180.30910532,0.00026987,2]
[366662667,1750393834047,-500.0,0.00026987,2]
[366662669,1750393834058,-500.0,0.00026987,2]
[366662671,1750393834068,-500.0,0.00026987,2]
[366662673,1750393834078,-500.0,0.00026987,2]
[366662675,1750393834088,-339.8806927,0.00026987,2]
[366662677,1750393834098,-7308.8509975,0.00026988,10]
[366662679,1750393834108,-490.0,0.00026988,4]
[366662681,1750393834118,-490.0,0.00026988,4]
[366662683,1750393834128,-490.0,0.00026988,4]
[366662685,1750393834138,-476.85633154,0.00026988,4]
[366662687,1750393834148,-490.0,0.00026988,4]
[366662689,1750393834158,-490.0,0.00026988,4]
[366662691,1750393834168,-490.0,0.00026988,4]
[366662693,1750393834178,-490.0,0.00026988,4]
[366662695,1750393834188,-500.0,0.00026988,2]
[366662697,1750393834198,-490.0,0.00026988,4]
[366662698,1750393834208,-490.0,0.00026988,4]
[366662700,1750393834218,-490.0,0.00026988,4]
[366662702,1750393834228,-490.0,0.00026988,2]
[366662704,1750393834237,-490.13741374,0.00026988,4]
[366662707,1750393834247,-490.0,0.00026988,2]
[366662709,1750393834258,-490.0,0.00026988,4]
[366662710,1750393834268,-490.0,0.00026988,4]
[366662712,1750393834278,-708.66,0.00026988,4]
[366662714,1750393834288,-490.0,0.00026988,4]
[366662716,1750393834297,-442.67794592,0.00026988,2]
[366662718,1750393834307,-492.20020301,0.00026988,4]
[366662720,1750393834317,-490.0,0.00026988,4]
[366662722,1750393834326,-492.35950672,0.00026988,4]
[366662724,1750393834335,-761.82,0.00026988,4]
[366662726,1750393834346,-490.0,0.00026988,4]
[366662728,1750393834355,-490.0,0.00026988,4]
[366662750,1750393834365,-490.0,0.00026988,4]
[366662754,1750393834647,-490.0,0.00026988,4]
[366662756,1750393834657,-490.0,0.00026988,4]
[366662757,1750393834666,-490.0,0.00026988,4]
[366662759,1750393834676,-1215.49,0.00026988,4]
[366662761,1750393834686,-490.80079719,0.00026988,4]
[366662762,1750393834695,-490.0,0.00026988,4]
[366662764,1750393834705,-490.0,0.00026988,4]
[366662766,1750393834715,-490.0,0.00026988,4]
[366662768,1750393834724,-490.0,0.00026988,4]
[366662769,1750393834734,-490.0,0.00026988,4]
[366662771,1750393834743,-490.0,0.00026988,4]
[366662773,1750393834753,-490.0,0.00026988,4]
[366662774,1750393834763,-490.0,0.00026988,4]
[366662776,1750393834773,-693.54,0.00026988,4]
[366662778,1750393834784,-490.0,0.00026988,4]
[366662780,1750393834793,-490.0,0.00026988,4]
[366662781,1750393834803,-490.0,0.00026988,4]
[366662783,1750393834813,-490.0,0.00026988,4]
[366662785,1750393834823,-1197.58,0.00026988,4]
[366662786,1750393834832,-490.0,0.00026988,4]
[366662788,1750393834842,-490.0,0.00026988,4]
[366662790,1750393834852,-490.0,0.00026988,4]
[366662792,1750393834862,-490.0,0.00026988,4]
[366662793,1750393834872,-490.0,0.00026988,4]
[366662795,1750393834882,-541.64,0.00026988,4]
[366662797,1750393834892,-490.0,0.00026988,4]
[366662799,1750393834902,-217.04541465,0.00026988,4]
[366662800,1750393834912,-1689.92,0.00026988,4]
[366662802,1750393834922,-490.0,0.00026988,4]
[366662804,1750393834932,-493.56637621,0.00026988,4]
[366662806,1750393834942,-1032.41,0.00026988,4]
[366662807,1750393834952,-490.0,0.00026988,4]
[366662809,1750393834962,-639.8947872,0.00026988,4]
[366662811,1750393834972,-490.0,0.00026988,4]
[366662813,1750393834982,-490.0,0.00026988,4]
[366662815,1750393834992,-490.0,0.00026988,4]
[366662817,1750393835001,-694.58,0.00026988,4]
[366662818,1750393835011,-490.0,0.00026988,4]
[366662820,1750393835020,-640.94,0.00026988,4]
[366662822,1750393835031,-490.0,0.00026988,4]
[366662824,1750393835040,-722.72,0.00026988,4]
[366662826,1750393835050,-490.0,0.00026988,4]
[366662827,1750393835059,-490.0,0.00026988,4]
[366662829,1750393835069,-927.96,0.00026988,4]
[366662831,1750393835078,-490.0,0.00026988,4]
[366662833,1750393835088,-490.0,0.00026988,4]
[366662834,1750393835098,-490.0,0.00026988,4]
[366662836,1750393835107,-491.07560003,0.00026988,4]
[366662838,1750393835117,-490.0,0.00026988,4]
[366662840,1750393835127,-490.0,0.00026988,4]
[366662841,1750393835136,-571.01,0.00026988,4]
[366662843,1750393835146,-490.0,0.00026988,4]
[366662845,1750393835156,-490.0,0.00026988,4]
[366662846,1750393835166,-317.29364216,0.00026988,4]
[366662848,1750393835175,-490.0,0.00026988,4]
[366662850,1750393835185,-490.0,0.00026988,4]
[366662852,1750393835195,-490.0,0.00026988,4]
[366662854,1750393835205,-1361.98,0.00026988,4]
[366662856,1750393835214,-753.32,0.00026988,4]
[366662857,1750393835223,-490.0,0.00026988,4]
[366662859,1750393835233,-490.0,0.00026988,4]
[366662861,1750393835243,-490.0,0.00026988,4]
[366662863,1750393835253,-490.0,0.00026988,4]
[366662864,1750393835262,-554.24,0.00026988,4]
[366662866,1750393835272,-490.0,0.00026988,4]
[366662868,1750393835282,-498.77048822,0.00026988,4]
[366662870,1750393835291,-490.0,0.00026988,4]
[366662872,1750393835301,-490.0,0.00026988,4]
[366662873,1750393835311,-1396.1,0.00026988,4]
[366662875,1750393835320,-223.67540956,0.00026988,4]
[366662877,1750393835329,-723.92,0.00026988,4]
[366662879,1750393835339,-639.69546421,0.00026988,4]
[366662881,1750393835348,-490.0,0.00026988,4]
[366662883,1750393835358,-490.0,0.00026988,4]
[366662884,1750393835367,-1709.08,0.00026988,4]
[366662886,1750393835377,-490.0,0.00026988,4]
[366662888,1750393835386,-187.94756642,0.00026988,4]
[366662890,1750393835396,-703.94,0.00026988,4]
[366662892,1750393835405,-533.51,0.00026988,4]
[366662893,1750393835415,-490.0,0.00026988,4]
[366662895,1750393835425,-490.0,0.00026988,4]